Cogmind - Beta 10.2 @@@ ROGUE MODE // 2021.08.08 @ 08:33:17 Player: thingamajigger Result: Self-destructed Performance ------------- Evolutions (1) 500 Regions Visited (4) 800 Robots Destroyed (63) 315 Value Destroyed (1248) 1248 Prototype IDs (6) 120 Alien Tech Used (0) 0 Bonus (0) 0 TOTAL SCORE: 2983 Bonus ------- None Cogmind --------- Core Integrity 272/400 Matter 300/300 Energy 275/275 System Corruption 0% Temperature Cool (0) Movement Treading (180) Ox1 Location -9/Mines Parts ------- > --- POWER (1) -------- Deuterium Engine > --- PROPULSION (3) --- Light Treads Light Treads Light Treads > --- UTILITY (3) ------ High-capacity Storage Unit High-capacity Storage Unit Light Armor Plating > --- WEAPON (2) ------- Improved Light Cannon EMP Blaster > --- INVENTORY (20) --- Deuterium Engine Light Treads High-capacity Matter Pod (48) Faulty Experimental Sensor Array Improved Targeting Computer Propulsion Shielding Light Armor Plating Pulse Rifle Pulse Rifle Pulse Rifle Pulse Rifle Light EM Pulse Cannon Light EM Pulse Cannon Improved Light Cannon Improved Light Cannon EMP Blaster EMP Blaster EMP Blaster Mini Grenade Launcher Mini Grenade Launcher Peak State ------------ > --- POWER ------------ Deuterium Engine > --- PROPULSION ------- Light Treads Light Treads Armored Wheel > --- UTILITY ---------- High-capacity Storage Unit High-capacity Storage Unit Light Armor Plating > --- WEAPON ----------- Improved Light Cannon Improved Light Cannon > --- INVENTORY -------- Deuterium Engine Experimental Sensor Array Propulsion Shielding Light EM Pulse Cannon Light EM Pulse Cannon Advanced Beam Cannon Heavy Assault Rifle Improved Light Cannon Improved Light Cannon EMP Blaster EMP Blaster EMP Blaster EMP Blaster EMP Blaster Grenade Launcher Mini Grenade Launcher Mini Grenade Launcher Mini Grenade Launcher Mini Grenade Launcher [Rating: 18] Favorites ----------- Power Ion Engine Engine Ion Engine Propulsion Light Treads Treads Light Treads Leg Aluminum Leg Wheel Armored Wheel Utility High-capacity Storage Unit Storage High-capacity Storage Unit Protection Light Armor Plating Weapon Improved Light Cannon Energy Gun EM Shotgun Energy Cannon Advanced Beam Cannon Ballistic Gun Light Assault Rifle Ballistic Cannon Improved Light Cannon Launcher Mini Grenade Launcher Build | -11 -10 -10 -9 -9 ------- Run | Scr Mat Min Mat Min Slots Evolved 2 | . . . 2 . Power . | . . . . . Propulsion 1 | . . . 1 . Utility 1 | . . . 1 . Weapon . | . . . . . Parts Attached 45 | 7 9 11 14 4 Power 5 | 1 . 1 3 . Engine 5 | 1 . 1 3 . Core . | . . . . . Reactor . | . . . . . Propulsion 12 | 2 . 3 4 3 Treads 7 | 2 . . 2 3 Leg 1 | . . 1 . . Wheel 4 | . . 2 2 . Hover . | . . . . . Flight . | . . . . . Utility 9 | 2 5 . 2 . Device . | . . . . . Storage 7 | 2 5 . . . Processor . | . . . . . Hackware . | . . . . . Protection 2 | . . . 2 . Artifact . | . . . . . Weapon 19 | 2 4 7 5 1 Energy Gun 11 | 1 3 5 2 . Energy Cannon 1 | . . . 1 . Ballistic Gun 1 | 1 . . . . Ballistic Cannon 2 | . . . 2 . Launcher 4 | . 1 2 . 1 Special Weapon . | . . . . . Impact Weapon . | . . . . . Slashing Weapon . | . . . . . Piercing Weapon . | . . . . . Special Melee Weapon . | . . . . . Unidentified Prototypes 1 | . . . 1 . Parts Lost 14 | . . 8 5 1 Power 3 | . . 1 2 . Propulsion 4 | . . 3 1 . Utility 1 | . . . 1 . Weapon 6 | . . 4 1 1 Highest Loss Streak 6 | . . 6 2 1 Average Slot Usage (%) 94 | . 99 85 92 100 Engine 12 | . 14 14 10 11 Treads 20 | . 28 10 15 27 Wheel 5 | . . 2 13 5 Storage 24 | . 28 28 22 22 Protection 5 | . . . 9 11 Energy Gun 7 | . 9 24 . . Ballistic Gun 2 | . 9 . . . Ballistic Cannon 10 | . . . 19 17 Launcher 4 | . 8 3 . 4 Naked Turns . | . . . . . Heaviest Build 84 | 16 75 75 84 84 Greatest Support 60 | 40 40 40 40 60 Greatest Overweight (x) 24 | 3 1 24 8 2 Average Overweight (x) 1 | . . 4 2 1 Largest Inventory Capacity 20 | 8 20 20 20 20 Average Capacity 18 | 6 16 20 20 20 Most Carried 20 | 2 16 18 20 20 Average Carried 14 | 1 9 15 15 19 Final Capacity 20 | 8 20 20 20 20 Final Carried 20 | 2 16 14 19 20 Class Distribution -------------------- 81% | Hauler-Mutant 18% | Mutant Dominant Class ---------------- Mutant | -10/Materials Hauler-Mutant | -10/Mines Hauler-Mutant | -9/Materials Hauler-Mutant | -9/Mines Resources | -11 -10 -10 -9 -9 ----------- Run | Scr Mat Min Mat Min Matter Collected 1278 | 267 281 100 306 324 Remotely . | . . . . . Salvage Created 1380 | 99 295 382 545 59 Parts 91 | 2 27 15 39 8 Haulers Intercepted . | . . . . . Recyclers Shooed . | . . . . . Parts Field Recycled . | . . . . . Retrieved Matter . | . . . . . Parts Self-Destructed . | . . . . . Prevented . | . . . . . Kills | -11 -10 -10 -9 -9 ------- Run | Scr Mat Min Mat Min Combat Hostiles Destroyed 47 | . 15 7 17 8 Guns 2 | . 1 . 1 . Cannons 20 | . . . 16 4 AOE 24 | . 14 6 . 4 Classes Destroyed 8 | 1 4 1 2 . Worker 3 | . 2 1 . . Builder 3 | . . 2 1 . Recycler 5 | 1 1 3 . . Watcher 5 | . 2 . 3 . Swarmer 24 | . 6 3 7 8 Grunt 18 | . 9 3 6 . Brawler 1 | . . . 1 . Sentry 3 | . . . 3 . Best Kill Streak 9 | 1 7 3 9 4 Combat Bots Only 7 | . 5 3 7 4 Max Kills in Single Turn 3 | 1 3 2 2 3 Gunslinging . | . . . . . Exploded 3 | . 2 2 . 3 Melee . | . . . . . Uniques/NPCs Destroyed 1 | . . 1 . . YI-UF0 (-10/Mines) Combat | -11 -10 -10 -9 -9 -------- Run | Scr Mat Min Mat Min Damage Taken 1923 | . 445 624 673 181 Core 368 | . 130 110 111 17 Absorbed by Shields . | . . . . . Core Remaining (%) 52 | 100 . 4 . . Volleys Fired 116 | 8 21 31 43 13 Largest 2 | 2 2 2 2 2 Hottest 112 | 60 90 112 112 78 Shots Fired 202 | 16 24 55 84 23 Gun 82 | 16 6 48 12 . Cannon 92 | . . . 72 20 Launcher 28 | . 18 7 . 3 Special . | . . . . . Kinetic 100 | 8 . . 72 20 Thermal 46 | . . 34 12 . Explosive 25 | . 18 7 . . Electromagnetic 31 | 8 6 14 . 3 Robot Hit Streak 8 | 6 5 8 5 3 Robot Miss Streak 3 | 2 1 3 3 3 Penetration Max . | . . . . . Secondary Targets . | . . . . . Shots Hit Robots 107 | 12 12 33 40 10 Core Hits 80 | 2 28 20 22 8 Critical Hits . | . . . . . Critical Kills . | . . . . . Critical Parts Destroyed . | . . . . . Melee Attacks . | . . . . . Impact . | . . . . . Slashing . | . . . . . Piercing . | . . . . . Sneak Attacks . | . . . . . Combat Hostiles . | . . . . . Follow-up Attacks . | . . . . . Damage Inflicted 3534 | 110 1358 898 808 360 Guns 725 | 110 80 406 129 . Cannons 847 | . . . 666 181 Explosions 1949 | . 1278 492 . 179 Melee . | . . . . . Ramming 13 | . . . 13 . Kinetic 893 | 46 . . 666 181 Thermal 669 | . 108 294 129 138 Explosive 1615 | . 1170 445 . . Electromagnetic 344 | 64 80 159 . 41 Impact . | . . . . . Slashing . | . . . . . Piercing . | . . . . . Highest Corruption . | . . . . . Average Corruption . | . . . . . Corruption Purged . | . . . . . Overload Shots . | . . . . . Overflow Damage 87 | . 41 . 18 28 Projectiles 22 | . . . 18 4 Explosions 65 | . 41 . . 24 Melee . | . . . . . Knockbacks 6 | . . . 4 2 Impact . | . . . . . Kinetic 5 | . . . 3 2 Secondary 1 | . . . 1 . Self-Inflicted Damage 246 | . 203 37 6 . Shots 9 | . 8 1 . . Rammed 1 | . . . 1 . Targets Rammed 1 | . . . 1 . Kicked . | . . . . . Crushed . | . . . . . Highest Temperature 255 | 60 120 255 255 63 Average Temperature 65 | 32 41 78 72 28 Received Heat Transfer 318 | . 108 84 126 . Siege Activations . | . . . . . Robots Corrupted 1 | . . 1 . . Combat Hostiles 1 | . . 1 . . Parts Fried . | . . . . . Impact Corruptions . | . . . . . Robots Melted . | . . . . . Combat Hostiles . | . . . . . Parts Melted 7 | . . 2 5 . Heat Transferred 1312 | . 100 679 333 200 Parts Sabotaged . | . . . . . Parts Stolen . | . . . . . Parts Stripped . | . . . . . Power Chain Reactions 2 | . 1 1 . . Missiles Intercepted . | . . . . . Alert | -11 -10 -10 -9 -9 ------- Run | Scr Mat Min Mat Min Peak Influence 387 | 5 360 86 387 267 Initial 66 | . 3 66 33 47 Average 122 | 1 154 44 225 79 Maximum Alert Level 1 | . 1 . 1 1 Low Security (%) 70 | 100 66 100 31 81 Level 1 29 | . 33 . 68 18 Level 2 . | . . . . . Level 3 . | . . . . . Level 4 . | . . . . . Level 5 . | . . . . . High Security . | . . . . . Max Security . | . . . . . Squads Dispatched 5 | . 3 . 2 . Investigation 3 | . 2 . 1 . Extermination . | . . . . . Reinforcement 2 | . 1 . 1 . Assault . | . . . . . Garrison . | . . . . . Intercept . | . . . . . Construction Impeded . | . . . . . Haulers Reinforced . | . . . . . Stealth | -11 -10 -10 -9 -9 --------- Run | Scr Mat Min Mat Min Distress Signals 2 | . . . 2 . Communications Jammed . | . . . . . Distress Signals . | . . . . . Times Spotted 64 | . 21 9 24 10 Peak Tracking Total 8 | . 5 3 8 4 Tactical Retreats 3 | . . . 2 1 Traps | -11 -10 -10 -9 -9 ------- Run | Scr Mat Min Mat Min Traps Triggered 2 | . 2 . . . Indirectly . | . . . . . Trap Hack Attempts . | . . . . . Triggered . | . . . . . Disarmed 6 | . . . 6 . Reprogrammed . | . . . . . Reused . | . . . . . Traps Extracted . | . . . . . Installed . | . . . . . Triggered . | . . . . . Machines | -11 -10 -10 -9 -9 ---------- Run | Scr Mat Min Mat Min Machines Disabled 7 | . 5 . 1 1 Max in Single Turn 2 | . 2 . 1 1 Machines Sabotaged . | . . . . . Garrisons Compromised . | . . . . . Overloaded Fab Kills . | . . . . . Fab Network Shutdowns . | . . . . . Hacking | -11 -10 -10 -9 -9 --------- Run | Scr Mat Min Mat Min Machines Accessed 13 | . 6 . 7 . Terminals 11 | . 5 . 6 . Fabricators . | . . . . . Repair Stations . | . . . . . Recycling Units 1 | . 1 . . . Scanalyzers 1 | . . . 1 . Garrison Access . | . . . . . Total Hacks 36 | . 15 . 21 . Successful 22 | . 7 . 15 . Failed 12 | . 7 . 5 . Catastrophic . | . . . . . Database Lockouts 2 | . 1 . 1 . Manual 19 | . 11 . 8 . Terminals 30 | . 13 . 17 . Fabricators . | . . . . . Repair Stations . | . . . . . Recycling Units 2 | . 2 . . . Scanalyzers 4 | . . . 4 . Garrison Access . | . . . . . Terminal Hacks 13 | . 3 . 10 . Robot Analysis 4 | . 1 . 3 . Prototype ID Bank 3 | . 2 . 1 . Terminal Index 1 | . . . 1 . Alert Level 1 | . . . 1 . Unreport Threat 1 | . . . 1 . Locate Traps 1 | . . . 1 . Disarm Traps 1 | . . . 1 . Assault Status 1 | . . . 1 . Fabricator Hacks . | . . . . . Repair Station Hacks . | . . . . . Recycling Unit Hacks 1 | . 1 . . . Retrieve Components 1 | . 1 . . . Scanalyzer 3 | . . . 3 . Insert Component 1 | . . . 1 . Analyze 2 | . . . 2 . Garrison Access Hacks . | . . . . . Unauthorized Hacks 5 | . 3 . 2 . Terminals 4 | . 2 . 2 . Botnet 2 | . 1 . 1 . Operators 2 | . 1 . 1 . Fabricators . | . . . . . Repair Stations . | . . . . . Recycling Units 1 | . 1 . . . Recyclers 1 | . 1 . . . Scanalyzers . | . . . . . Garrison Access . | . . . . . Data Cores Recovered . | . . . . . Used . | . . . . . Hacking Detections 11 | . 4 . 7 . Full Trace Events 1 | . . . 1 . Feedback Events . | . . . . . Feedback Blocked . | . . . . . Robot Schematics Acquired . | . . . . . Robots Built . | . . . . . Matter . | . . . . . Time . | . . . . . Total Robot Build Rating . | . . . . . Part Schematics Acquired 1 | . . . 1 . Parts Built . | . . . . . Matter . | . . . . . Time . | . . . . . Total Part Build Rating . | . . . . . Parts Repaired . | . . . . . Time . | . . . . . Parts Recycled . | . . . . . Recycled Matter . | . . . . . Retrieved Matter . | . . . . . Retrieved Components . | . . . . . Parts Scanalyzed 1 | . . . 1 . Part Schematics Acquired 1 | . . . 1 . Parts Damaged . | . . . . . Bothacking | -11 -10 -10 -9 -9 ------------ Run | Scr Mat Min Mat Min Used RIF Installer . | . . . . . Robots Hacked . | . . . . . Non-combat . | . . . . . Combat . | . . . . . Robot Hacks Applied . | . . . . . Relay Couplers Released . | . . . . . Robots Rewired . | . . . . . Allies Hacked . | . . . . . Hacks Repelled . | . . . . . Allies | -11 -10 -10 -9 -9 -------- Run | Scr Mat Min Mat Min Total Allies 3 | . . . . 3 Largest Group 3 | . . . . 3 Highest-Rated Group 40 | . . . . 40 Highest-Rated Ally 16 | . . . . 16 Total Orders . | . . . . . Ally Attacks . | . . . . . Total Damage . | . . . . . Kills . | . . . . . Allies Corrupted . | . . . . . Allies Melted . | . . . . . Intel | -11 -10 -10 -9 -9 ------- Run | Scr Mat Min Mat Min Robot Analysis Total 4 | . 1 . 3 . Derelict Logs Recovered 1 | . . . . 1 Drone Launches . | . . . . . Drone Recoveries . | . . . . . Exploration | -11 -10 -10 -9 -9 ------------- Run | Scr Mat Min Mat Min Turns Passed 4891 | 113 1073 1084 1192 1429 Spaces Moved 2202 | 51 543 321 572 715 Core 42 | 10 . 32 . . Treads 1852 | 41 543 204 349 715 Legs 27 | . . 27 . . Wheels 281 | . . 58 223 . Hover . | . . . . . Flight . | . . . . . Fastest Speed 50 | 50 160 110 103 180 Average Speed 192 | 150 171 290 164 189 Slowest Speed 1250 | 200 180 1250 240 200 Overloaded Moves . | . . . . . Propulsion Burnouts . | . . . . . Robots Hopped . | . . . . . Cave-ins Triggered . | . . . . . Exploration Rate (%) 62 | 6 93 62 54 98 Regions Visited 4 Branch Regions 2 Pre-discovered Areas 2 | . . 1 . 1 Known Exits Taken . | . . . . . Unknown Exits Taken 4 | 1 1 1 1 . Scrap Searched 2 | . . . . 2 Spaces Dug 15 | . 12 . 3 . Terrain Destroyed 200 | . 128 56 5 11 Melee . | . . . . . Projectile 7 | . . . 5 2 AOE 193 | . 128 56 . 9 Terrain Rammed . | . . . . . Walls Destroyed . | . . . . . Machines Disabled . | . . . . . Actions | -11 -10 -10 -9 -9 --------- Run | Scr Mat Min Mat Min Total 2653 | 70 663 414 741 765 Wait 223 | 3 71 50 77 22 Move 2198 | 50 542 320 571 715 Hop . | . . . . . Pick Up 42 | 2 13 2 20 5 Fast Attach 21 | 7 2 3 8 1 Attach 9 | . . 4 4 1 Detach 1 | . 1 . . . Swap 15 | . 7 4 2 2 Drop 27 | . 6 . 15 6 Fire 116 | 8 21 31 43 13 Melee . | . . . . . Ram 1 | . . . 1 . Kick . | . . . . . Crush . | . . . . . Escape Stasis . | . . . . . Rewire . | . . . . . Trap . | . . . . . Miscellaneous . | . . . . . Route ------- -11/Scrapyard -10/Materials (discovered 4 exits: *Mat x3 / [*Min]) -10/Mines -9/Materials (discovered 2 exits: [*Mat] / [*Min]) -9/Mines (discovered 2 exits: [*Mat x2]) History --------- Turn | Location | Event 15 | -11/Scrapyard | Discovered new exit (range 15) 114 | -11/Scrapyard | Entered Materials 246 | -10/Materials | Discovered new exit (range 15) 313 | -10/Materials | Build established: Mutant 325 | -10/Materials | Discovered new exit (range 16) 493 | -10/Materials | Discovered new exit (range 16) 698 | -10/Materials | Discovered new exit (range 5) 716 | -10/Materials | Central database locked down 1153 | -10/Materials | Core integrity fell below 50% 1187 | -10/Materials | Entered Mines 1209 | -10/Mines | Build established: Hauler-Mutant 1251 | -10/Mines | YI-UF0 nonchalantly dropped a Grenade Launcher on the ground 1298 | -10/Mines | Found a damaged Exp. Sensor Array with a note attached 1302 | -10/Mines | Found Prototype Device 1351 | -10/Mines | Learned location of Storage (-8) 1590 | -10/Mines | Core integrity fell below 20% 1591 | -10/Mines | Destroyed YI-UF0 1615 | -10/Mines | Lost 6 parts (1p2n3w) 2238 | -10/Mines | Discovered new exit (range 14) 2271 | -10/Mines | Entered Materials 2271 | -9/Materials | Evolved 2 slots: Propulsion x1, Utility x1 2421 | -9/Materials | Identified Exp. Sensor Array 2531 | -9/Materials | Destroyed 7 combat bots 2743 | -9/Materials | Central database locked down 3121 | -9/Materials | Discovered new exit (range 4) 3427 | -9/Materials | Discovered new exit (range 15) 3463 | -9/Materials | Entered Mines 3464 | -9/Mines | Assembled infested the area 3469 | -9/Mines | Assisted by a Guerilla fighting off Assembled 3534 | -9/Mines | Discovered new exit (range 7) 4202 | -9/Mines | Joined a pair of Derelicts in attacking an 0b10 outpost 4348 | -9/Mines | Assisted by bots powering up and referring to "LRC-V3" 4618 | -9/Mines | Discovered new exit (range 14) 4892 | -9/Mines | Self-destructed Last Messages --------------- 04246_ Dropped Propulsion Shielding. 04247_ Acquired Lgt. Armor Plating. 04249_ Dropped Hvy. Assault Rifle. 04253_ Acquired Propulsion Shielding. 04310_ Imp. Light Cannon destroyed. 04311_ S-10 Pest destroyed. 04348_ Trooper 2a: "Hello LRC-V3. What is your command?" 04348_ Mercenary 2a: "Hello LRC-V3. What is your command?" 04348_ Trooper 2b: "Hello LRC-V3. What is your command?" 04439_ Searching scrap... 04439_ Found Hcp. Matter Pod. 04439_ Found Targeting Computer. 04439_ Found Terrain Scan Processor. 04439_ Found Imp. Targeting Computer. 04439_ Found 26 Matter. 04440_ Acquired 26 matter. 04442_ Acquired Hcp. Matter Pod. 04618_ EXIT=FOUND 04624_ Acquired 7 matter. 04649_ Acquired 87 matter. Map ----- +----------------------------------------------------+ | ????# ###### # #?# | | ????# ################# ### # #?# | | ????## #######??????## ### ## #?# | | ?????## #??????# ### ## ### | | ?????### #### #??????# #?# ## | | ???????# < #??# #??????# ### # | | ???????# #??# #??????## ######## # ## | | ???????# ##### #???????#### ##????# ## ##? | | ??????## #??????????## ##???# ## #?? | | ?????## ###### #???????????## ##### ## #?? | | ?????# ###???# #????????????# ## #?? | | ????# ##???### #####????????# """ ####### #?? | | ????# #???## ##??????## """ ##????# #?? | | ????# ###### #??????# """ #???## ##? | | ????## ### ##??????# """ #??## ## | | ?????####?# ### ##???????## ##??# # | | ??????????# #?## ############## ##???# # | | ??????????# #??### #??####????## | | ???????#### #????# ######### #??????????## | | ??????## #????# #???????# #????????### < # | | ??????# """ ##???# #???##### #??????### # | | ??????# """ ##??# #???# #?????## ## | | ??????# """ ##?# #???# ### #?????# ##? | | ####??## ### ##??# #?# #?????# ##?? | | # #?## #### #?# #?????## ######??# | | ## @ ### ####???###????????# | | ### ######## ######????????## | | # #### ### ###### ????????? | | ## ######?# ## #??????????# | | ?### #?????# """" ## #????????### | | ???#### #?????####### """" ## ########## | | ??????## ##??????????## """" | | ???????## ##??????????## ### ######### | | ????????# #???????????# ###?# #???????## | | ???????## #???????????# ##???# #????????### | | ???????# #???????????# ###????# ####???????? | | ???????# #???????????# ##??????# #???????? | | ???????## ##???????????# #???????#### #???????? | | ?###????###???????????## #??????????# ##??????? | | ## ##?????????????????# #???????#### #??????? | | # #???????######????# ##????### #??????? | | # ##?????## ##???## ##???# ##??????? | | # ####??# #????## ##??#! ########## | | # #### #?????## #??## ! ### | | # ## #???????# #???#####?# ####### | | ## #????????# #?????????# #?????? | | ?####### #????????# ##?????????# #?????? | | ???????### ##???????## ##??????????# #?????? | | ?????????### #######??# #?????####### ##????? | | ???????????## ## #??# #????##[!## #????? | +----------------------------------------------------+ Best States ------------- Heat Dissipation 28 Energy Generation 14 Energy Capacity 275 Matter Stores 300 Matter Capacity 300 Sight Range 16 Terrain Scan Density 10 Armor Coverage 150 Evasion (%) 40 Recoil Reduction 3 Item Schematics ----------------- Exp. Sensor Array | -9/Materials | Scanalyzed Robot Schematics ------------------ None Fabricated ------------ Nothing Alien Tech Used ----------------- None Achievements -------------- None Challenges ------------ None Game ------ Seed TacticalMiniCore Manual? 0 Play Time 00:22:02 Cumulative 91.3 hours Start 2021.08.08 @ 08:15:12 End 2021.08.08 @ 08:33:17 Sessions 1 Manual Loads 0 Difficulty Rogue Special Mode None Game No. 156 Rogue 144 Adventurer 4 Explorer 8 Win Type - Total 6 Types 5/0/0/1/0/0/0/0/0 Lore% 60 Gallery% 78 Achievement% 56 Wizard Run 0 Options --------- ASCII 0 Keyboard 1 Movement Numpad Keybinds 0 Fullscreen 1 Font 18/SmallcapsGlow Map View 76x50 Tactical HUD 1 Map Filters NONE Filters NONE Steam 1 RUN: 47f08018-2aea-418f-b6cf-dbc8d058a6dc